fUSD/lending_fUSD_20240916
["ID","MTS","AMOUNT","RATE_DAILY","PERIOD"]
[338260334,1726453840530,-602.120644,0.00014342,2]
[338260335,1726453840539,-503.54672167,0.00014342,2]
[338260336,1726453840548,-160.368154,0.00014345,2]
[338260337,1726453840557,-455.33991782,0.00014349,2]
[338260338,1726453840566,-159.20690319,0.00014349,2]
[338260339,1726453840575,-455.33991782,0.00014364,2]
[338260340,1726453840758,-159.20690319,0.00014364,2]
[338260341,1726453840770,-150.0,0.00014364,2]
[338260342,1726453840785,-501.70765525,0.00014373,2]
[338260343,1726453840794,-500.58182159,0.00014373,2]
[338260344,1726453840803,-500.0,0.00014373,2]
[338260345,1726453840812,-500.57149295,0.00014373,2]
[338260346,1726453840821,-181.46314366,0.00014379,2]
[338260347,1726453840957,-273.87677416,0.00014379,2]
[338260348,1726453840967,-159.20690319,0.00014379,2]
[338260349,1726453840977,-151.28625599,0.00014391,2]
[338260350,1726453840987,-1028.3396,0.00014394,2]
[338260351,1726453840995,-455.33991782,0.00014394,2]
[338260352,1726453841004,-159.20690319,0.00014394,2]
[338260353,1726453841013,-11709.2563,0.000144,2]
[338260354,1726453841022,-3577.84502059,0.000144,2]
[338260355,1726453841033,-1025.24744927,0.000144,2]
[338260356,1726453841043,-1439.07083368,0.000144,2]
[338260357,1726453841054,-78810.94375656,0.000144,2]
[338260358,1726453841064,-3170.01195793,0.000144,2]
[338260359,1726453841075,-961.27203814,0.000144,2]
[338260360,1726453841097,-69710.84027083,0.000144,2]
[338260361,1726453841108,-1399.85886565,0.000144,2]
[338260404,1726453843537,-869.95370905,0.00013122,2]
[338260406,1726453843548,-478.6711612,0.00013122,2]
[338260408,1726453843558,-627.59413878,0.00013122,2]
[338260410,1726453843571,-1326.43945789,0.00013122,2]
[338260413,1726453843582,-323.966194,0.00013122,2]
[338260415,1726453843593,-1968.40098272,0.00013122,2]
[338260417,1726453843604,-778.84,0.00013122,2]
[338260638,1726453845993,-3595.03415142,0.00013122,2]
[338260639,1726453846005,-1442.09417813,0.00013122,2]
[338260640,1726453846016,-1463.018765,0.00013122,2]
[338260641,1726453846027,-252.89121513,0.00013122,2]
[338260642,1726453846039,-2432.93869737,0.00013122,2]
[338260643,1726453846050,-2940.49346556,0.00013122,2]
[338260644,1726453846059,-40443.21090735,0.000144,2]
[338260645,1726453846068,-455.33991782,0.00014409,2]
[338260646,1726453846077,-159.20690319,0.00014409,2]
[338260647,1726453846086,-150.0,0.00014409,2]
[338260648,1726453846096,-455.33991782,0.00014424,2]
[338260649,1726453846105,-159.20690319,0.00014424,2]
[338260650,1726453846114,-455.33991782,0.00014439,2]
[338260651,1726453846122,-159.20690319,0.00014439,2]
[338260652,1726453846132,-455.33991782,0.00014454,2]
[338260653,1726453846141,-159.20690319,0.00014454,2]
[338260654,1726453846149,-150.0,0.00014454,2]
[338260655,1726453846158,-455.33991782,0.00014469,2]
[338260656,1726453846168,-159.20690319,0.00014469,2]
[338260657,1726453846177,-167.96005779,0.00014471,2]
[338260658,1726453846186,-150.0,0.00014472,2]
[338260659,1726453846195,-455.33991782,0.00014484,2]
[338260660,1726453846205,-159.20690319,0.00014484,2]
[338260661,1726453846214,-72120.1468,0.00014494,2]
[338260662,1726453846223,-422.116239,0.00014494,2]
[338260663,1726453846232,-422.116239,0.00014494,2]
[338260664,1726453846241,-455.33991782,0.00014499,2]
[338260665,1726453846251,-159.20690319,0.00014499,2]
[338260666,1726453846260,-150.0,0.00014499,2]
[338260667,1726453846270,-455.33991782,0.00014514,2]
[338260668,1726453846282,-159.20690319,0.00014514,2]
[338260669,1726453846291,-602.120644,0.00014517,2]
[338260670,1726453846300,-455.33991782,0.00014528,2]
[338260671,1726453846309,-159.20690319,0.00014528,2]
[338260672,1726453846318,-151.0,0.00014543,2]
[338260673,1726453846327,-151.0,0.00014543,2]
[338260674,1726453846335,-151.0,0.00014543,2]
[338260675,1726453846344,-455.33991782,0.00014543,2]
[338260676,1726453846353,-159.20690319,0.00014543,2]
[338260677,1726453846362,-150.0,0.00014543,2]
[338260678,1726453846372,-150.2,0.00014555,2]
[338260679,1726453846381,-455.33991782,0.00014558,2]
[338260680,1726453846390,-159.20690319,0.00014558,2]
[338260681,1726453846399,-455.33991782,0.00014573,2]
[338260682,1726453846409,-159.20690319,0.00014573,2]
[338260683,1726453846417,-455.33991782,0.00014588,2]
[338260684,1726453846426,-159.20690319,0.00014588,2]
[338260685,1726453846435,-150.0,0.00014588,2]
[338260686,1726453846444,-1496.63505,0.0001459,2]
[338260687,1726453846453,-32112.33649038,0.00014594,2]
[338260688,1726453846463,-766.57880003,0.00014594,2]
[338260689,1726453846476,-151.0,0.00014594,2]
[338260690,1726453846485,-151.0,0.00014594,2]
[338260691,1726453846494,-151.0,0.00014594,2]
[338260692,1726453846503,-264.622298,0.00014594,2]
[338260693,1726453846513,-151.0,0.00014594,2]
[338260694,1726453846522,-214.007845,0.00014594,2]
[338260695,1726453846532,-275.970255,0.000146,2]
[338260696,1726453846541,-16993.245089,0.000146,2]
[338260697,1726453846550,-422.116239,0.000146,2]
[338260698,1726453846560,-422.116239,0.000146,2]
[338260699,1726453846569,-455.33991782,0.00014603,2]
[338260700,1726453846578,-159.20690319,0.00014603,2]
[338260701,1726453846588,-455.33991782,0.00014618,2]
[338260702,1726453846597,-159.20690319,0.00014618,2]
[338260703,1726453846606,-164.68,0.00014626,2]
[338260704,1726453846615,-150.0,0.00014628,2]
[338260705,1726453846624,-455.33991782,0.00014633,2]
[338260706,1726453846634,-159.20690319,0.00014633,2]
[338260707,1726453846647,-150.0,0.00014633,2]
[338260708,1726453846656,-455.33991782,0.00014648,2]
[338260709,1726453846666,-159.20690319,0.00014648,2]
[338260710,1726453846675,-150.0,0.00014653,2]
[338260711,1726453846684,-1000.0,0.0001466,2]
[338260712,1726453846693,-455.33991782,0.00014663,2]
[338260713,1726453846703,-159.20690319,0.00014663,2]
[338260714,1726453846712,-150.0,0.00014675,2]
[338260715,1726453846721,-3368.4246,0.00014676,2]
[338260716,1726453846731,-455.33991782,0.00014678,2]
[338260717,1726453846741,-159.20690319,0.00014678,2]
[338260718,1726453846750,-150.0,0.00014678,2]
[338260719,1726453846759,-1406.19648301,0.00014679,2]
[338260720,1726454226922,154.1,0.00010767,2]
[338260721,1726454415193,268.0,0.00011751,2]
[338260722,1726454506367,158.51,0.00010959,2]
[338260727,1726454655384,-919.720836,0.00012694,2]
[338260728,1726454713377,21855.56917801,0.00012,2]
[338260734,1726454905230,270.81,0.00010918,2]
[338260735,1726454922988,-776.92280072,0.00012758,2]
[338260747,1726454973059,-687.44029928,0.00012758,2]
[338260748,1726454973089,-161.33,0.00012833,2]
[338260749,1726454973117,-210.1262089,0.00012833,2]
[338260753,1726455032067,-39.8737911,0.00012833,2]
[338260754,1726455032077,-300.40786564,0.00012842,2]
[338260755,1726455032088,-10247.48213436,0.00012842,2]
[338260756,1726455032098,-500.0,0.00012999,2]
[338260757,1726455032108,-499.79412774,0.00012999,2]
[338260758,1726455032119,-300.0,0.00012999,2]
[338260759,1726455032128,-242.23,0.00013,2]
[338260760,1726455032138,-279.52099758,0.00013,2]
[338260761,1726455032147,-5370.64314173,0.00013,2]
[338260762,1726455032156,-270.81,0.00013182,2]
[338260763,1726455032165,-150.0,0.0001329,2]
[338260764,1726455032175,-150.0,0.0001329,2]
[338260765,1726455032184,-178.53012765,0.0001329,2]
[338260766,1726455032193,-193.76284184,0.0001329,2]
[338260767,1726455032202,-150.0,0.0001329,2]
[338260768,1726455032211,-167.53347738,0.0001329,2]
[338260769,1726455032220,-178.53012765,0.00013305,2]
[338260770,1726455032230,-178.53012765,0.0001332,2]
[338260771,1726455032239,-178.53012765,0.00013335,2]
[338260772,1726455032247,-178.53012765,0.0001335,2]
[338260773,1726455032257,-150.0,0.00013364,2]
[338260774,1726455032266,-178.53012765,0.00013365,2]
[338260775,1726455032275,-428.54,0.00013365,2]
[338260776,1726455032288,-178.53012765,0.0001338,2]
[338260777,1726455032298,-178.53012765,0.00013395,2]
[338260778,1726455032307,-178.53012765,0.0001341,2]
[338260779,1726455032317,-178.53012765,0.00013425,2]
[338260780,1726455032326,-150.0,0.00013438,2]
[338260781,1726455032337,-178.53012765,0.0001344,2]
[338260782,1726455032348,-178.53012765,0.00013454,2]
[338260783,1726455032362,-178.53012765,0.00013469,2]
[338260784,1726455032372,-178.53012765,0.00013484,2]
[338260785,1726455032381,-178.53012765,0.00013499,2]
[338260786,1726455032390,-150.0,0.00013501,2]
[338260787,1726455032399,-150.0,0.00013512,2]
[338260788,1726455032411,-178.53012765,0.00013514,2]
[338260789,1726455032420,-198.43,0.0001352,2]
[338260790,1726455032429,-158.127,0.0001352,2]
[338260791,1726455032438,-150.0,0.00013529,2]
[338260792,1726455032447,-178.53012765,0.00013529,2]
[338260793,1726455032457,-178.53012765,0.00013544,2]
[338260794,1726455032467,-178.53012765,0.00013559,2]
[338260795,1726455032478,-178.53012765,0.00013574,2]
[338260796,1726455032487,-150.0,0.00013586,2]
[338260797,1726455032496,-178.53012765,0.00013589,2]
[338260798,1726455032505,-178.53012765,0.00013604,2]
[338260799,1726455032514,-178.53012765,0.00013619,2]
[338260800,1726455032523,-178.53012765,0.00013633,2]
[338260801,1726455032532,-178.53012765,0.00013648,2]
[338260802,1726455032543,-150.0,0.0001366,2]
[338260803,1726455032553,-178.53012765,0.00013663,2]
[338260804,1726455032563,-178.53012765,0.00013678,2]
[338260805,1726455032572,-178.53012765,0.00013693,2]
[338260806,1726455032581,-200.0,0.00013699,2]
[338260807,1726455032591,-150.2,0.00013699,2]
[338260808,1726455032600,-2751.0,0.00013699,2]
[338260809,1726455032609,-178.53012765,0.00013708,2]
[338260810,1726455032618,-150.0,0.00013712,2]
[338260811,1726455032627,-1000.0,0.00013721,2]
[338260812,1726455032636,-178.53012765,0.00013723,2]
[338260813,1726455032646,-150.0,0.00013733,2]
[338260814,1726455032656,-178.53012765,0.00013738,2]
[338260815,1726455032666,-178.53012765,0.00013753,2]
[338260816,1726455032675,-178.53012765,0.00013768,2]
[338260817,1726455032684,-178.53012765,0.00013783,2]
[338260818,1726455032694,-178.53012765,0.00013798,2]
[338260819,1726455032703,-150.0,0.00013807,2]
[338260820,1726455032712,-178.53012765,0.00013812,2]
[338260821,1726455032722,-178.53012765,0.00013827,2]
[338260822,1726455032731,-178.53012765,0.00013842,2]
[338260823,1726455032741,-178.53012765,0.00013857,2]
[338260824,1726455032750,-178.53012765,0.00013872,2]
[338260825,1726455032759,-150.0,0.00013881,2]
[338260826,1726455032768,-178.53012765,0.00013887,2]
[338260827,1726455032778,-160.368154,0.00013897,2]
[338260828,1726455032787,-5061.88,0.00013897,2]
[338260829,1726455032796,-178.53012765,0.00013902,2]
[338260830,1726455032806,-178.53012765,0.00013917,2]
[338260831,1726455032815,-150.0,0.00013923,2]
[338260832,1726455032825,-178.53012765,0.00013932,2]
[338260833,1726455032834,-178.53012765,0.00013947,2]
[338260834,1726455032843,-150.0,0.00013955,2]
[338260835,1726455032852,-178.53012765,0.00013962,2]
[338260836,1726455032861,-178.53012765,0.00013977,2]
[338260837,1726455032871,-178.53012765,0.00013991,2]
[338260838,1726455032880,-178.53012765,0.00014006,2]
[338260839,1726455032890,-178.53012765,0.00014021,2]
[338260840,1726455032899,-150.0,0.00014029,2]
[338260841,1726455032911,-178.53012765,0.00014036,2]
[338260842,1726455032920,-178.53012765,0.00014051,2]
[338260843,1726455032930,-178.53012765,0.00014066,2]
[338260844,1726455032939,-178.53012765,0.00014081,2]
[338260845,1726455032948,-178.53012765,0.00014096,2]
[338260846,1726455032957,-150.0,0.00014103,2]
[338260847,1726455032967,-178.53012765,0.00014111,2]
[338260848,1726455032977,-178.53012765,0.00014126,2]
[338260849,1726455032987,-150.0,0.00014134,2]
[338260850,1726455032996,-178.53012765,0.00014141,2]
[338260851,1726455033005,-178.53012765,0.00014156,2]
[338260852,1726455033014,-178.53012765,0.0001417,2]
[338260853,1726455033023,-150.0,0.00014176,2]
[338260854,1726455033033,-178.53012765,0.00014185,2]
[338260855,1726455033044,-178.53012765,0.000142,2]
[338260856,1726455033053,-178.53012765,0.00014215,2]
[338260857,1726455033062,-150.2,0.00014226,2]
[338260858,1726455033072,-158.127,0.00014229,2]
[338260859,1726455033082,-178.53012765,0.0001423,2]
[338260860,1726455033091,-178.53012765,0.00014245,2]
[338260861,1726455033100,-317.302002,0.00014247,2]
[338260862,1726455033110,-150.0,0.0001425,2]
[338260863,1726455033120,-178.53012765,0.0001426,2]
[338260864,1726455033131,-178.53012765,0.00014275,2]
[338260865,1726455033140,-178.53012765,0.0001429,2]
[338260866,1726455033149,-558.0,0.00014303,2]
[338260867,1726455033158,-150.0,0.00014303,2]
[338260868,1726455033167,-178.53012765,0.00014305,2]
[338260869,1726455033176,-178.53012765,0.0001432,2]
[338260870,1726455033186,-150.0,0.00014324,2]
[338260871,1726455033196,-178.53012765,0.00014335,2]
[338260872,1726455033205,-160.368154,0.00014345,2]
[338260873,1726455033215,-150.0,0.00014345,2]
[338260874,1726455033225,-178.53012765,0.00014349,2]
[338260875,1726455033234,-178.53012765,0.00014364,2]
[338260876,1726455033243,-178.53012765,0.00014379,2]
[338260877,1726455033253,-178.53012765,0.00014394,2]
[338260878,1726455033262,-150.0,0.00014398,2]
[338260879,1726455033271,-178.53012765,0.00014409,2]
[338260880,1726455033281,-178.53012765,0.00014424,2]
[338260881,1726455033290,-178.53012765,0.00014439,2]
[338260882,1726455033300,-178.53012765,0.00014454,2]
[338260883,1726455033309,-178.53012765,0.00014469,2]
[338260884,1726455033319,-150.0,0.00014472,2]
[338260885,1726455033328,-178.53012765,0.00014484,2]
[338260886,1726455033338,-178.53012765,0.00014499,2]
[338260887,1726455033347,-178.53012765,0.00014514,2]
[338260888,1726455033357,-150.0,0.00014516,2]
[338260889,1726455033366,-1028.15808618,0.00014521,2]
[338260890,1726455033376,-178.53012765,0.00014528,2]
[338260891,1726455033386,-150.0,0.00014529,2]
[338260892,1726455033395,-150.0,0.00014533,2]
[338260893,1726455033404,-150.0,0.00014542,2]
[338260894,1726455033414,-178.53012765,0.00014543,2]
[338260895,1726455033424,-150.0,0.00014546,2]
[338260896,1726455033433,-150.0,0.00014552,2]
[338260897,1726455033443,-150.0,0.00014556,2]
[338260898,1726455033455,-178.53012765,0.00014558,2]
[338260899,1726455033465,-178.53012765,0.00014573,2]
[338260900,1726455033477,-150.0,0.00014577,2]
[338260901,1726455033486,-150.0,0.00014586,2]
[338260902,1726455033496,-178.53012765,0.00014588,2]
[338260903,1726455033506,-2995.04047561,0.00014592,2]
[338260904,1726455033516,-39506.9,0.00014593,2]
[338260905,1726455033525,-1000.0,0.00014593,2]
[338260906,1726455033535,-14652.18993222,0.00014593,2]
[338260907,1726455033757,-326.2944229,0.00014593,2]
[338260908,1726455033767,-3507.88742975,0.00014594,2]
[338260909,1726455033778,-440.57660707,0.00014594,2]
[338260910,1726455033790,-1167.26,0.00014594,2]
[338260911,1726455033801,-2911.35661323,0.00014594,2]
[338260912,1726455033813,-8630.5353258,0.00014594,2]
[338260913,1726455033825,-2627.68117714,0.00014594,2]
[338260914,1726455033836,-263.7714696,0.00014594,2]
[338260915,1726455033847,-655.60712406,0.00014594,2]
[338260916,1726455033858,-548.83429294,0.00014594,2]
[338260919,1726455038301,-1140.7174538,0.00014594,2]
[338260920,1726455038310,-220.3288,0.00014594,2]
[338260921,1726455038319,-5004.999999,0.000146,2]
[338260922,1726455038329,-178.53012765,0.00014603,2]
[338260923,1726455038339,-150.0,0.00014605,2]
[338260924,1726455038348,-178.53012765,0.00014618,2]
[338260925,1726455038358,-150.0,0.00014619,2]
[338260926,1726455038367,-14978.48435507,0.00014627,2]
[338260927,1726455038377,-178.53012765,0.00014633,2]
[338260928,1726455038387,-150.0,0.00014637,2]
[338260929,1726455038396,-150.0,0.0001464,2]
[338260930,1726455038406,-150.0,0.00014647,2]
[338260931,1726455038416,-178.53012765,0.00014648,2]
[338260932,1726455038425,-150.0,0.0001465,2]
[338260933,1726455038434,-14978.48435507,0.00014661,2]
[338260934,1726455038443,-178.53012765,0.00014663,2]
[338260935,1726455038451,-163.23449616,0.00014673,2]
[338260936,1726455038460,-178.53012765,0.00014678,2]
[338260937,1726455038470,-10118.5161218,0.00014679,2]
[338260938,1726455038483,-814.62141,0.00014679,2]
[338260940,1726455038492,-150.0,0.00014681,2]
[338260942,1726455038501,-912.635,0.00014685,2]
[338260944,1726455038510,-229.174,0.00014685,2]
[338260945,1726455038519,-211.60914068,0.00014686,2]
[338260947,1726455038528,-347.47830323,0.0001469,2]
[338260949,1726455038537,-178.80766694,0.0001469,2]
[338260951,1726455038546,-1269.53436859,0.0001469,2]
[338260953,1726455038555,-602.120644,0.00014692,2]
[338260955,1726455038565,-178.53012765,0.00014693,2]
[338260958,1726455038574,-77891.0798,0.00014693,2]
[338260960,1726455038583,-166.71127976,0.00014693,2]
[338260961,1726455038592,-1369.83514567,0.00014693,2]
[338260964,1726455038601,-582.76144583,0.00014693,2]
[338260965,1726455038610,-150.0,0.00014693,2]
[338260967,1726455038619,-320.1144,0.00014694,2]
[338260970,1726455038628,-2977.6358,0.00014694,2]
[338260972,1726455038638,-165.53326616,0.00014694,2]
[338260974,1726455038648,-174.15014797,0.00014694,2]
[338260976,1726455038657,-203.53107199,0.00014694,2]
[338260978,1726455038666,-14978.48435507,0.00014695,2]
[338260980,1726455038675,-150.0,0.00014696,2]
[338260982,1726455038684,-150.0,0.00014697,2]
[338260984,1726455038694,-1010.0,0.000147,2]
[338260986,1726455038704,-796.0,0.00014703,2]
[338260988,1726455038713,-150.0,0.00014705,2]
[338260990,1726455038723,-178.53012765,0.00014707,2]
[338260992,1726455038736,-150.0,0.00014718,2]
[338260994,1726455038751,-178.53012765,0.00014722,2]
[338260995,1726455038760,-14978.48435507,0.00014729,2]
[338260998,1726455038769,-150.0,0.00014733,2]
[338261000,1726455038779,-150.0,0.00014735,2]
[338261002,1726455038788,-178.53012765,0.00014737,2]
[338261003,1726455038799,-165.53326616,0.00014746,2]
[338261005,1726455038808,-178.53012765,0.00014752,2]
[338261007,1726455038817,-150.2,0.00014752,2]
[338261010,1726455038826,-174.15014796,0.00014763,2]
[338261012,1726455038835,-150.0,0.00014767,2]
[338261013,1726455038845,-244.72405191,0.00014767,2]
[338261015,1726455038854,-251.47054473,0.00014767,2]
[338261018,1726455038863,-178.53012765,0.00014767,2]
[338261020,1726455038872,-266.9912847,0.00014767,2]
[338261022,1726455038881,-500.48735273,0.00014773,2]
[338261024,1726455038891,-500.0,0.00014773,2]
[338261026,1726455038900,-503.57298303,0.00014773,2]
[338261028,1726455038909,-160.368154,0.00014774,3]
[338261030,1726455038919,-160.368154,0.00014779,3]
[338261031,1726455038928,-156.89,0.0001478,2]
[338261032,1726455038938,-150.0,0.00014781,2]
[338261033,1726455038947,-404.24415495,0.00014783,2]
[338261034,1726455038956,-500.0,0.00014783,2]
[338261035,1726455038965,-175.33149919,0.00014783,2]
[338261036,1726455038979,-156.89,0.00014784,2]
[338261037,1726455038989,-220.729891,0.00014784,3]
[338261038,1726455038998,-160.368154,0.00014784,3]
[338261039,1726455039007,-2651.105321,0.00014787,2]
[338261040,1726455039016,-18165.1126428,0.00014787,2]
[338261041,1726455039025,-1090629.803622,0.0001479,5]
[338261042,1726455039034,-337.692991,0.0001479,2]
[338261043,1726455039046,-337.692991,0.0001479,2]
[338261044,1726455039055,-151.0,0.0001479,2]
[338261045,1726455039064,-159.271945,0.0001479,2]
[338261046,1726455039073,-13668.46950679,0.0001479,2]
[338261047,1726455039082,-260.24944748,0.00014793,2]
[338261048,1726455039092,-154.95911291,0.00014793,2]
[338261049,1726455039101,-500.0,0.00014793,2]
[338261050,1726455039110,-500.0,0.00014793,2]
[338261051,1726455039120,-302.07020228,0.00014793,2]
[338261052,1726455039130,-444878.92305467,0.00014793,2]
[338261053,1726455039139,-298.25892844,0.00014793,2]
[338261054,1726455039148,-11872.40933946,0.00014793,2]
[338261055,1726455039158,-337.692991,0.00014793,2]
[338261056,1726455039167,-337.692991,0.00014793,2]
[338261057,1726455039176,-337.692991,0.00014793,2]
[338261058,1726455039185,-337.692991,0.00014793,2]
[338261059,1726455039194,-283.869785,0.00014793,2]
[338261060,1726455039204,-151.0,0.00014793,2]
[338261061,1726455039213,-210.77724596,0.00014794,2]
[338261062,1726455039222,-754509.64866636,0.00014794,2]
[338261063,1726455039238,-11405.0,0.00014794,2]
[338261064,1726455039248,-2099.9999141,0.00014794,2]
[338261065,1726455040139,-1172.01,0.00014794,2]
[338261066,1726455040151,-10208.24914706,0.00014794,2]
[338261073,1726455043190,-3908.24010701,0.00014764,2]
[338261075,1726455043929,-11070.24424806,0.00014764,2]
[338261076,1726455043938,-13934.02894764,0.00014794,2]
[338261077,1726455043948,-1230.59951484,0.00014794,2]
[338261078,1726455043957,-500.0,0.00014794,2]
[338261079,1726455043967,-2594.18,0.00014794,2]
[338261080,1726455043976,-5301.11,0.00014794,2]
[338261081,1726455043986,-500.0,0.00014794,2]
[338261082,1726455043996,-2594.18,0.00014794,2]
[338261083,1726455044005,-5301.11,0.00014794,2]
[338261084,1726455044014,-500.0,0.00014794,2]
[338261085,1726455044023,-2594.18,0.00014794,2]
[338261086,1726455044032,-5301.11,0.00014794,2]
[338261087,1726455044043,-500.0,0.00014794,2]
[338261088,1726455044053,-2594.18,0.00014794,2]
[338261089,1726455044062,-5301.11,0.00014794,2]
[338261090,1726455044071,-500.0,0.00014794,2]
[338261091,1726455044081,-2594.18,0.00014794,2]
[338261092,1726455044091,-5301.11,0.00014794,2]
[338261093,1726455044101,-500.0,0.00014794,2]
[338261094,1726455044110,-2594.18,0.00014794,2]
[338261095,1726455044119,-5301.11,0.00014794,2]
[338261096,1726455044129,-500.0,0.00014794,2]
[338261097,1726455044138,-2594.18,0.00014794,2]
[338261098,1726455044147,-4037.4,0.00014794,2]
[338261099,1726455044156,-5301.11,0.00014794,2]
[338261100,1726455044165,-3575.91,0.00014794,2]
[338261101,1726455044175,-4037.4,0.00014794,2]
[338261102,1726455044184,-500.0,0.00014794,2]
[338261103,1726455044193,-2594.18,0.00014794,2]
[338261104,1726455044202,-5301.11,0.00014794,2]
[338261105,1726455044212,-3575.91,0.00014794,2]
[338261106,1726455044221,-4037.4,0.00014794,2]
[338261107,1726455044230,-500.0,0.00014794,2]
[338261108,1726455044238,-5301.11,0.00014794,2]
[338261109,1726455044247,-2594.18,0.00014794,2]
[338261110,1726455044256,-3575.91,0.00014794,2]
[338261111,1726455044265,-4037.4,0.00014794,2]
[338261112,1726455044274,-500.0,0.00014794,2]
[338261113,1726455044283,-5301.11,0.00014794,2]
[338261114,1726455044292,-2594.18,0.00014794,2]
[338261115,1726455044301,-3575.91,0.00014794,2]
[338261116,1726455044310,-4037.4,0.00014794,2]
[338261117,1726455044319,-500.0,0.00014794,2]
[338261118,1726455044328,-5301.11,0.00014794,2]
[338261119,1726455044339,-2594.18,0.00014794,2]
[338261120,1726455044348,-4037.4,0.00014794,2]
[338261121,1726455044357,-3575.91,0.00014794,2]
[338261122,1726455044367,-500.0,0.00014794,2]
[338261123,1726455044376,-1488.10302432,0.00014794,2]
[338261124,1726455044392,-3813.00697568,0.00014794,2]
[338261125,1726455044401,-2594.18,0.00014794,2]
[338261126,1726455044410,-4037.4,0.00014794,2]
[338261127,1726455044418,-3575.91,0.00014794,2]
[338261128,1726455044428,-500.0,0.00014794,2]
[338261129,1726455044438,-2663.52007304,0.00014794,2]
[338261130,1726455044451,-2637.58992696,0.00014794,2]
[338261131,1726455044460,-2594.26093876,0.00014794,2]
[338261132,1726455044470,-3575.91,0.00014794,2]
[338261133,1726455044481,-5301.11,0.00014794,2]
[338261134,1726455044491,-500.0,0.00014794,2]
[338261135,1726455044500,-3575.91,0.00014794,2]
[338261136,1726455044509,-5301.11,0.00014794,2]
[338261137,1726455044518,-500.0,0.00014794,2]
[338261138,1726455044527,-4464.10913429,0.00014794,2]
[338261139,1726455046138,-1332.87973536,0.00013492,2]
[338261140,1726455046147,-359.25460275,0.00014794,2]
[338261141,1726455046159,-477.74626296,0.00014794,2]
[338261142,1726455046168,-500.0,0.00014794,2]
[338261143,1726455046178,-5301.11,0.00014794,2]
[338261144,1726455046187,-2471.7900084,0.00014794,2]
[338261145,1726455046321,-2829.3199916,0.00014794,2]
[338261146,1726455046330,-5301.2448502,0.00014794,2]
[338261147,1726455046339,-15520.1,0.00014794,2]
[338261148,1726455046349,-2926.74697447,0.00014794,2]
[338261149,1726455046360,-933.17494973,0.00014794,2]
[338261150,1726455046503,-617.64,0.00014794,2]
[338261208,1726455064528,158.9,0.00010959,2]
[338261209,1726455250295,1050.0,0.00011,2]
[338261210,1726455327804,563.0,0.00010959,2]
[338261211,1726455426248,359.31,0.0001183,2]
[338261212,1726455564423,174.54,0.00010807,2]
[338261213,1726455584834,155.22,0.00010959,2]
[338261214,1726455665812,1547.09641754,0.0001,2]
[338261215,1726455665838,975.54590531,0.0001,2]
[338261216,1726455665864,2484.99428649,0.0001,2]
[338261217,1726455665887,10324.14222377,0.0001,2]
[338261218,1726455818160,150.60136031,0.0001,2]
[338261224,1726456025872,372.43,0.00011195,2]
[338261227,1726456178439,161.05,0.00010959,2]
[338261236,1726456232433,-352.24657691,0.00012935,2]
[338261249,1726456238324,-1949.18676907,0.00012935,2]
[338261250,1726456238335,-2731.21137889,0.00012935,2]
[338261251,1726456238346,-4512.70252713,0.00012935,2]
[338261252,1726456238355,-300.0,0.00012999,2]
[338261253,1726456238364,-1100.0,0.00013,2]
[338261254,1726456238373,-250.0,0.00013035,2]
[338261255,1726456238382,-152.67,0.00013039,2]
[338261256,1726456238391,-6936.09,0.00013095,2]
[338261257,1726456238400,-1191.2,0.00013095,2]
[338261258,1726456238409,-13920.46,0.00013097,2]
[338261259,1726456238418,-1852.42,0.00013099,2]
[338261260,1726456238428,-218.0,0.000131,2]
[338261261,1726456238437,-3517.45747287,0.00013104,2]
[338261262,1726456238522,-5333.84252713,0.00013104,2]
[338261263,1726456238533,-730.85,0.00013105,2]
[338261264,1726456238542,-839.96,0.00013163,2]